{"text_format":"1","workbook":"xlsx","n_sheets":6,"sheets":["mode d'emploi","Equipe 1","Equipe 2","Equipe 3","Equipe 4","Equipe 5"],"not_rendered":{"charts":0,"images":0,"macros":1,"external_links":0,"defined_names":0,"comments":0,"pivot_tables":0},"unopened":[],"bounds":{"document_bytes":16777216,"sheet_cells":100000,"rows_first":2000,"rows_last":500,"rows_between":2000,"halvings":0,"cell_chars":16384,"cell_head_chars":4096},"cells_cut":0,"cells_raw":0,"read":"whole","date_system":"1900"}

{"sheet":"mode d'emploi","index":0,"n_rows":8,"n_cols":1,"rows_kept":8,"cut":false,"hidden":false,"merged":[]}
["à lire impérativement"]
["vérifier que votre enregistrement du fichier excel est bien en format .xlsm… prenant en charge les macros"]
["pour un bon fonctionnement et un calcul automatique par le bouton \"CALCUL\" en colonne \"W\" merci de bien lire les recommandations ci-dessous:"]
["certaines cellules sont automatisées, il est impératif \nde ne pas ajouter de lignes, \nde ne pas supprimer de lignes, \nde ne pas utiliser la fonction \"effacer le contenu\""]
["en cas d'erreur, cliquer sur la cellule et remplacer la donnée erronée par la nouvelle donnée"]
["Ne rien inscrire dans les colonnes BLANCHES = calculs automatisés: les colonnes K et N se complètent lors du calcul final = bouton \"calcul\""]
[]
["Rappel: sur les ateliers \"poussée individuelle\" \"Poussée 1 +2\" et \"Pousséevs2 en reculant\"       0 et 1 point sont éliminatoires"]

{"sheet":"Equipe 1","index":1,"n_rows":70,"n_cols":33,"rows_kept":70,"cut":false,"hidden":false,"merged":[[65,18,65,20],[2,21,3,21],[2,20,3,20],[0,0,0,21],[2,32,3,32],[1,0,1,4],[2,22,3,22],[2,23,3,23],[2,24,3,24],[1,12,1,13],[1,9,1,10],[2,15,3,15],[2,9,2,10],[2,12,2,13],[1,25,3,25],[2,16,3,16],[2,17,3,17],[2,18,3,18],[2,19,3,19]]}
["Passeport \"Joueuse de Devant\" Moins de 18 ans Féminine màj 5juillet2016"]
[null,null,null,null,null,"a","b",null,"c","d",null,"e","f",null,"g","Score","h","i","j","k","l","m","n","o","total \n(h+ i+j+k+l+m+n+o)","Résultats\nCLIQUEZ\nsur"]
["Club","Numéro Licence","Prénom","Nom","Date \nnaissance","Taille (en cm!)","Poids","IMC","Test Squat Complet            0                           2                         4","\nSaut en \nlongueur\n\nIMC<27    /    IMC>27\n3= 190 cm ≤ L   /   170 cm ≤ L\n2= 165 ≤ L<190 / 145 ≤ L<170\n1= 140 ≤ L<165 / 120 ≤ L<145\n0=  L < 140cm  /  L < 120cm\n\n\n\n\n",null,"Gainage tronc\n3 = mains au-dessus de la tête\n2 = mains menton\n 1 = appuis genoux\n 0 = échec ","Gainage\n cou\n\npoids<70 / poids ≥ 70\n3 = 10 fois  /  8 fois \n2 = 5 fois  /   4 fois\n1 = 1 fois /  1 fois\n0pt = 1 fois <5''",null,"Circuit Posture \"Pré mêlée\"\n3 = circuit<12''\n2 =circuit>12''\n1 = 2 essais initiaux\n0pt= non essais initiaux","\"Fonctionnel\"        c+d+e+f+g","Connaissance et maîtrise\ndes 3\ncommandements     ","Posture \n de poussée","Poussée\nindividuelle","Poussée \n1 +2\nau joug","Poussée\nvs2 en \nreculant","Poussée \nvs2 en avançant","Placement & Poussée\n sur\n partenaire\ndroite","Placement & Poussée\nsur \npartenaire\ngauche","Technique",null,null,null,null,null,null,null,"Poste\n1 à 15"]
[null,null,null,null,null,null,null,null,null,"Distance (cm)","Score","Score","Nombre de rép.","Score","Score"]
["A",null,"EXEMPLE","A","1997-01-01",173,65,{"$f":"IF(G5<>\"\",G5/(F5/100)^2,\"\")","v":21.718066089745729},4,160,1,3,5,2,2,{"$f":"IF(H5<>\"\",I5+K5+L5+N5+O5,\"\")","v":12},"V",3,3,3,3,4,4,3,{"$f":"IF(R5<>\"\",SUM(R5:X5),\"\")","v":23},"OK!",null,null,null,null,null,null,7]
[null,null,null,null,null,null,null,{"$f":"IF(G6<>\"\",G6/(F6/100)^2,\"\")","v":""},null,null,null,null,null,null,null,{"$f":"IF(H6<>\"\",I6+K6+L6+N6+O6,\"\")","v":""},null,null,null,null,null,null,null,null,{"$f":"IF(R6<>\"\",SUM(R6:X6),\"\")","v":""},null,null,"V",0,0,0,0]
[null,null,null,null,null,null,null,"",null,null,null,null,null,null,null,{"$f":"IF(H7<>\"\",I7+K7+L7+N7+O7,\"\")","v":""},null,null,null,null,null,null,null,null,"",null,null,"NV",40,1,1,1]
[null,null,null,null,null,null,null,"",null,null,null,null,null,null,null,"",null,null,null,null,null,null,null,null,"",null,null,null,35,2,2,2]
[null,null,null,null,null,null,null,"",null,null,null,null,null,null,null,"",null,null,null,null,null,null,null,null,"",null,null,null,30,3,3,3]
[null,null,null,null,null,null,null,"",null,null,null,null,null,null,null,"",null,null,null,null,null,null,null,null,"",null,null,null,25,null,4,4]
[null,null,null,null,null,null,null,"",null,null,null,null,null,null,null,"",null,null,null,null,null,null,null,null,"",null,null,null,20,null,null,5]
[null,null,null,null,null,null,null,"",null,null,null,null,null,null,null,"",null,null,null,null,null,null,null,null,""]
[null,null,null,null,null,null,null,"",null,null,null,null,null,null,null,"",null,null,null,null,null,null,null,null,{"$f":"IF(R13<>\"\",SUM(R13:X13),\"\")","v":""}]
[null,null,null,null,null,null,null,"",null,null,null,null,null,null,null,"",null,null,null,null,null,null,null,null,""]
[null,null,null,null,null,null,null,"",null,null,null,null,null,null,null,"",null,null,null,null,null,null,null,null,""]
[null,null,null,null,null,null,null,"",null,null,null,null,null,null,null,"",null,null,null,null,null,null,null,null,""]
[null,null,null,null,null,null,null,"",null,null,null,null,null,null,null,"",null,null,null,null,null,null,null,null,""]
[null,null,null,null,null,null,null,"",null,null,null,null,null,null,null,"",null,null,null,null,null,null,null,null,""]
[null,null,null,null,null,null,null,"",null,null,null,null,null,null,null,"",null,null,null,null,null,null,null,null,""]
[null,null,null,null,null,null,null,"",null,null,null,null,null,null,null,"",null,null,null,null,null,null,null,null,""]
[null,null,null,null,null,null,null,"",null,null,null,null,null,null,null,"",null,null,null,null,null,null,null,null,""]
[null,null,null,null,null,null,null,"",null,null,null,null,null,null,null,"",null,null,null,null,null,null,null,null,""]
[null,null,null,null,null,null,null,"",null,null,null,null,null,null,null,"",null,null,null,null,null,null,null,null,""]
[null,null,null,null,null,null,null,"",null,null,null,null,null,null,null,"",null,null,null,null,null,null,null,null,""]
[null,null,null,null,null,null,null,"",null,null,null,null,null,null,null,"",null,null,null,null,null,null,null,null,""]
[null,null,null,null,null,null,null,"",null,null,null,null,null,null,null,"",null,null,null,null,null,null,null,null,""]
[null,null,null,null,null,null,null,"",null,null,null,null,null,null,null,"",null,null,null,null,null,null,null,null,""]
[null,null,null,null,null,null,null,"",null,null,null,null,null,null,null,"",null,null,null,null,null,null,null,null,""]
[null,null,null,null,null,null,null,"",null,null,null,null,null,null,null,"",null,null,null,null,null,null,null,null,""]
[null,null,null,null,null,null,null,"",null,null,null,null,null,null,null,"",null,null,null,null,null,null,null,null,""]
[null,null,null,null,null,null,null,"",null,null,null,null,null,null,null,"",null,null,null,null,null,null,null,null,""]
[null,null,null,null,null,null,null,"",null,null,null,null,null,null,null,"",null,null,null,null,null,null,null,null,""]
[null,null,null,null,null,null,null,"",null,null,null,null,null,null,null,"",null,null,null,null,null,null,null,null,""]
[null,null,null,null,null,null,null,"",null,null,null,null,null,null,null,"",null,null,null,null,null,null,null,null,""]
[null,null,null,null,null,null,null,"",null,null,null,null,null,null,null,"",null,null,null,null,null,null,null,null,""]
[null,null,null,null,null,null,null,"",null,null,null,null,null,null,null,"",null,null,null,null,null,null,null,null,""]
[null,null,null,null,null,null,null,"",null,null,null,null,null,null,null,"",null,null,null,null,null,null,null,null,""]
[null,null,null,null,null,null,null,"",null,null,null,null,null,null,null,"",null,null,null,null,null,null,null,null,""]
[null,null,null,null,null,null,null,"",null,null,null,null,null,null,null,"",null,null,null,null,null,null,null,null,""]
[null,null,null,null,null,null,null,"",null,null,null,null,null,null,null,"",null,null,null,null,null,null,null,null,{"$f":"IF(R40<>\"\",SUM(R40:X40),\"\")","v":""}]
[null,null,null,null,null,null,null,"",null,null,null,null,null,null,null,"",null,null,null,null,null,null,null,null,""]
[null,null,null,null,null,null,null,"",null,null,null,null,null,null,null,"",null,null,null,null,null,null,null,null,""]
[null,null,null,null,null,null,null,"",null,null,null,null,null,null,null,"",null,null,null,null,null,null,null,null,""]
[null,null,null,null,null,null,null,"",null,null,null,null,null,null,null,"",null,null,null,null,null,null,null,null,""]
[null,null,null,null,null,null,null,"",null,null,null,null,null,null,null,"",null,null,null,null,null,null,null,null,""]
[null,null,null,null,null,null,null,"",null,null,null,null,null,null,null,"",null,null,null,null,null,null,null,null,""]
[null,null,null,null,null,null,null,"",null,null,null,null,null,null,null,"",null,null,null,null,null,null,null,null,""]
[null,null,null,null,null,null,null,"",null,null,null,null,null,null,null,"",null,null,null,null,null,null,null,null,""]
[null,null,null,null,null,null,null,"",null,null,null,null,null,null,null,"",null,null,null,null,null,null,null,null,{"$f":"IF(R49<>\"\",SUM(R49:X49),\"\")","v":""}]
[null,null,null,null,null,null,null,"",null,null,null,null,null,null,null,"",null,null,null,null,null,null,null,null,""]
[null,null,null,null,null,null,null,"",null,null,null,null,null,null,null,"",null,null,null,null,null,null,null,null,""]
[null,null,null,null,null,null,null,"",null,null,null,null,null,null,null,"",null,null,null,null,null,null,null,null,""]
[null,null,null,null,null,null,null,"",null,null,null,null,null,null,null,"",null,null,null,null,null,null,null,null,""]
[null,null,null,null,null,null,null,"",null,null,null,null,null,null,null,"",null,null,null,null,null,null,null,null,""]
[null,null,null,null,null,null,null,"",null,null,null,null,null,null,null,"",null,null,null,null,null,null,null,null,""]
[null,null,null,null,null,null,null,"",null,null,null,null,null,null,null,"",null,null,null,null,null,null,null,null,""]
[null,null,null,null,null,null,null,"",null,null,null,null,null,null,null,"",null,null,null,null,null,null,null,null,""]
[null,null,null,null,null,null,null,"",null,null,null,null,null,null,null,"",null,null,null,null,null,null,null,null,{"$f":"IF(R58<>\"\",SUM(R58:X58),\"\")","v":""}]
[null,null,null,null,null,null,null,"",null,null,null,null,null,null,null,"",null,null,null,null,null,null,null,null,""]
[null,null,null,null,null,null,null,"",null,null,null,null,null,null,null,"",null,null,null,null,null,null,null,null,""]
[null,null,null,null,null,null,null,"",null,null,null,null,null,null,null,"",null,null,null,null,null,null,null,null,""]
[null,null,null,null,null,null,null,"",null,null,null,null,null,null,null,"",null,null,null,null,null,null,null,null,""]
[null,null,null,null,null,null,null,"",null,null,null,null,null,null,null,"",null,null,null,null,null,null,null,null,""]
[null,null,null,null,null,null,null,"",null,null,null,null,null,null,null,"",null,null,null,null,null,null,null,null,""]
[null,null,null,null,null,null,null,"",null,null,null,null,null,null,null,"",null,null,null,null,null,null,null,null,""]
[null,null,null,null,null,null,null,null,null,null,null,null,null,null,null,null,null,null,"note ≤ 1 annule les notes suivantes"]
[]
[null,null,null,null,null,null,null,null,null,null,null,null,null,null,null,null,"Ne pas effacer ni insérer de lignes supplémentaires"]
[]
[null,null,null,null,null,null,null,null,null,null,null,null,null,null,"Pour créer une nouvelle feuille: placer le curseur (en bas à gauche) sur Equipe 1  vierge - cliquez droit sur \"déplacer ou copier\" puis \"créer une copie\" et valider: une nouvelle feuille avec le tableau est créée."]

{"sheet":"Equipe 2","index":2,"n_rows":70,"n_cols":33,"rows_kept":70,"cut":false,"hidden":false,"merged":[[2,23,3,23],[2,24,3,24],[2,16,3,16],[2,17,3,17],[2,32,3,32],[1,25,3,25],[2,22,3,22],[65,18,65,20],[0,0,0,21],[2,18,3,18],[2,19,3,19],[2,20,3,20],[2,21,3,21],[1,0,1,4],[1,9,1,10],[1,12,1,13],[2,9,2,10],[2,12,2,13],[2,15,3,15]]}
["Passeport \"Joueuse de Devant\" Moins de 18 ans Féminine"]
[null,null,null,null,null,"a","b",null,"c","d",null,"e","f",null,"g","Score","h","i","j","k","l","m","n","o","total \n(h+ i+j+k+l+m+n+o)","Résultats\nCLIQUEZ\nsur"]
["Club","Numéro Licence","Prénom","Nom","Date \nnaissance","Taille (en cm!)","Poids","IMC","Test Squat Complet            0                           2                         4","\nSaut en \nlongueur\n\nIMC<27    /    IMC>27\n3= 190 cm ≤ L   /   170 cm ≤ L\n2= 165 ≤ L<190 / 145 ≤ L<170\n1= 140 ≤ L<165 / 120 ≤ L<145\n0=  L < 140cm  /  L < 120cm\n\n\n\n\n",null,"Gainage tronc\n3 = mains au-dessus de la tête\n2 = mains menton\n 1 = appuis genoux\n 0 = échec ","Gainage\n cou\n\npoids<70 / poids ≥ 70\n3 = 10 fois  /  8 fois \n2 = 5 fois  /   4 fois\n1 = 1 fois /  1 fois\n0pt = 1 fois <5''",null,"Circuit Posture \"Pré mêlée\"\n3 = circuit<12''\n2 =circuit>12''\n1 = 2 essais initiaux\n0pt= non essais initiaux","\"Fonctionnel\"        c+d+e+f+g","Connaissance et maîtrise\ndes 3\ncommandements     ","Posture \n de poussée","Poussée\nindividuelle","Poussée \n1 +2\nau joug","Poussée\nvs2 en \nreculant","Poussée \nvs2 en avançant","Placement & Poussée\n sur\n partenaire\ndroite","Placement & Poussée\nsur \npartenaire\ngauche","Technique",null,null,null,null,null,null,null,"Poste\n1 à 15"]
[null,null,null,null,null,null,null,null,null,"Distance (cm)","Score","Score","Nombre de rép.","Score","Score"]
["A",null,"EXEMPLE","A","1997-01-01",173,65,{"$f":"IF(G5<>\"\",G5/(F5/100)^2,\"\")","v":21.718066089745729},4,160,1,3,5,2,2,{"$f":"IF(H5<>\"\",I5+K5+L5+N5+O5,\"\")","v":12},"V",3,3,3,3,4,4,3,{"$f":"IF(R5<>\"\",SUM(R5:X5),\"\")","v":23},"OK!",null,null,null,null,null,null,7]
[null,null,null,null,null,null,null,{"$f":"IF(G6<>\"\",G6/(F6/100)^2,\"\")","v":""},null,null,null,null,null,null,null,{"$f":"IF(H6<>\"\",I6+K6+L6+N6+O6,\"\")","v":""},null,null,null,null,null,null,null,null,{"$f":"IF(R6<>\"\",SUM(R6:X6),\"\")","v":""},null,null,"V",0,0,0,0]
[null,null,null,null,null,null,null,"",null,null,null,null,null,null,null,{"$f":"IF(H7<>\"\",I7+K7+L7+N7+O7,\"\")","v":""},null,null,null,null,null,null,null,null,"",null,null,"NV",40,1,1,1]
[null,null,null,null,null,null,null,"",null,null,null,null,null,null,null,"",null,null,null,null,null,null,null,null,"",null,null,null,35,2,2,2]
[null,null,null,null,null,null,null,"",null,null,null,null,null,null,null,"",null,null,null,null,null,null,null,null,"",null,null,null,30,3,3,3]
[null,null,null,null,null,null,null,"",null,null,null,null,null,null,null,"",null,null,null,null,null,null,null,null,"",null,null,null,25,null,4,4]
[null,null,null,null,null,null,null,"",null,null,null,null,null,null,null,"",null,null,null,null,null,null,null,null,"",null,null,null,20,null,null,5]
[null,null,null,null,null,null,null,"",null,null,null,null,null,null,null,"",null,null,null,null,null,null,null,null,""]
[null,null,null,null,null,null,null,"",null,null,null,null,null,null,null,"",null,null,null,null,null,null,null,null,{"$f":"IF(R13<>\"\",SUM(R13:X13),\"\")","v":""}]
[null,null,null,null,null,null,null,"",null,null,null,null,null,null,null,"",null,null,null,null,null,null,null,null,""]
[null,null,null,null,null,null,null,"",null,null,null,null,null,null,null,"",null,null,null,null,null,null,null,null,""]
[null,null,null,null,null,null,null,"",null,null,null,null,null,null,null,"",null,null,null,null,null,null,null,null,""]
[null,null,null,null,null,null,null,"",null,null,null,null,null,null,null,"",null,null,null,null,null,null,null,null,""]
[null,null,null,null,null,null,null,"",null,null,null,null,null,null,null,"",null,null,null,null,null,null,null,null,""]
[null,null,null,null,null,null,null,"",null,null,null,null,null,null,null,"",null,null,null,null,null,null,null,null,""]
[null,null,null,null,null,null,null,"",null,null,null,null,null,null,null,"",null,null,null,null,null,null,null,null,""]
[null,null,null,null,null,null,null,"",null,null,null,null,null,null,null,"",null,null,null,null,null,null,null,null,""]
[null,null,null,null,null,null,null,"",null,null,null,null,null,null,null,"",null,null,null,null,null,null,null,null,""]
[null,null,null,null,null,null,null,"",null,null,null,null,null,null,null,"",null,null,null,null,null,null,null,null,""]
[null,null,null,null,null,null,null,"",null,null,null,null,null,null,null,"",null,null,null,null,null,null,null,null,""]
[null,null,null,null,null,null,null,"",null,null,null,null,null,null,null,"",null,null,null,null,null,null,null,null,""]
[null,null,null,null,null,null,null,"",null,null,null,null,null,null,null,"",null,null,null,null,null,null,null,null,""]
[null,null,null,null,null,null,null,"",null,null,null,null,null,null,null,"",null,null,null,null,null,null,null,null,""]
[null,null,null,null,null,null,null,"",null,null,null,null,null,null,null,"",null,null,null,null,null,null,null,null,""]
[null,null,null,null,null,null,null,"",null,null,null,null,null,null,null,"",null,null,null,null,null,null,null,null,""]
[null,null,null,null,null,null,null,"",null,null,null,null,null,null,null,"",null,null,null,null,null,null,null,null,""]
[null,null,null,null,null,null,null,"",null,null,null,null,null,null,null,"",null,null,null,null,null,null,null,null,""]
[null,null,null,null,null,null,null,"",null,null,null,null,null,null,null,"",null,null,null,null,null,null,null,null,""]
[null,null,null,null,null,null,null,"",null,null,null,null,null,null,null,"",null,null,null,null,null,null,null,null,""]
[null,null,null,null,null,null,null,"",null,null,null,null,null,null,null,"",null,null,null,null,null,null,null,null,""]
[null,null,null,null,null,null,null,"",null,null,null,null,null,null,null,"",null,null,null,null,null,null,null,null,""]
[null,null,null,null,null,null,null,"",null,null,null,null,null,null,null,"",null,null,null,null,null,null,null,null,""]
[null,null,null,null,null,null,null,"",null,null,null,null,null,null,null,"",null,null,null,null,null,null,null,null,""]
[null,null,null,null,null,null,null,"",null,null,null,null,null,null,null,"",null,null,null,null,null,null,null,null,""]
[null,null,null,null,null,null,null,"",null,null,null,null,null,null,null,"",null,null,null,null,null,null,null,null,""]
[null,null,null,null,null,null,null,"",null,null,null,null,null,null,null,"",null,null,null,null,null,null,null,null,{"$f":"IF(R40<>\"\",SUM(R40:X40),\"\")","v":""}]
[null,null,null,null,null,null,null,"",null,null,null,null,null,null,null,"",null,null,null,null,null,null,null,null,""]
[null,null,null,null,null,null,null,"",null,null,null,null,null,null,null,"",null,null,null,null,null,null,null,null,""]
[null,null,null,null,null,null,null,"",null,null,null,null,null,null,null,"",null,null,null,null,null,null,null,null,""]
[null,null,null,null,null,null,null,"",null,null,null,null,null,null,null,"",null,null,null,null,null,null,null,null,""]
[null,null,null,null,null,null,null,"",null,null,null,null,null,null,null,"",null,null,null,null,null,null,null,null,""]
[null,null,null,null,null,null,null,"",null,null,null,null,null,null,null,"",null,null,null,null,null,null,null,null,""]
[null,null,null,null,null,null,null,"",null,null,null,null,null,null,null,"",null,null,null,null,null,null,null,null,""]
[null,null,null,null,null,null,null,"",null,null,null,null,null,null,null,"",null,null,null,null,null,null,null,null,""]
[null,null,null,null,null,null,null,"",null,null,null,null,null,null,null,"",null,null,null,null,null,null,null,null,{"$f":"IF(R49<>\"\",SUM(R49:X49),\"\")","v":""}]
[null,null,null,null,null,null,null,"",null,null,null,null,null,null,null,"",null,null,null,null,null,null,null,null,""]
[null,null,null,null,null,null,null,"",null,null,null,null,null,null,null,"",null,null,null,null,null,null,null,null,""]
[null,null,null,null,null,null,null,"",null,null,null,null,null,null,null,"",null,null,null,null,null,null,null,null,""]
[null,null,null,null,null,null,null,"",null,null,null,null,null,null,null,"",null,null,null,null,null,null,null,null,""]
[null,null,null,null,null,null,null,"",null,null,null,null,null,null,null,"",null,null,null,null,null,null,null,null,""]
[null,null,null,null,null,null,null,"",null,null,null,null,null,null,null,"",null,null,null,null,null,null,null,null,""]
[null,null,null,null,null,null,null,"",null,null,null,null,null,null,null,"",null,null,null,null,null,null,null,null,""]
[null,null,null,null,null,null,null,"",null,null,null,null,null,null,null,"",null,null,null,null,null,null,null,null,""]
[null,null,null,null,null,null,null,"",null,null,null,null,null,null,null,"",null,null,null,null,null,null,null,null,""]
[null,null,null,null,null,null,null,"",null,null,null,null,null,null,null,"",null,null,null,null,null,null,null,null,""]
[null,null,null,null,null,null,null,"",null,null,null,null,null,null,null,"",null,null,null,null,null,null,null,null,""]
[null,null,null,null,null,null,null,"",null,null,null,null,null,null,null,"",null,null,null,null,null,null,null,null,""]
[null,null,null,null,null,null,null,"",null,null,null,null,null,null,null,"",null,null,null,null,null,null,null,null,""]
[null,null,null,null,null,null,null,"",null,null,null,null,null,null,null,"",null,null,null,null,null,null,null,null,""]
[null,null,null,null,null,null,null,"",null,null,null,null,null,null,null,"",null,null,null,null,null,null,null,null,""]
[null,null,null,null,null,null,null,"",null,null,null,null,null,null,null,"",null,null,null,null,null,null,null,null,""]
[null,null,null,null,null,null,null,null,null,null,null,null,null,null,null,null,null,null,"note ≤ 1 annule les notes suivantes"]
[]
[null,null,null,null,null,null,null,null,null,null,null,null,null,null,null,null,"Ne pas effacer ni insérer de lignes supplémentaires"]
[]
[null,null,null,null,null,null,null,null,null,null,null,null,null,null,"Pour créer une nouvelle feuille: placer le curseur (en bas à gauche) sur Equipe 1  vierge - cliquez droit sur \"déplacer ou copier\" puis \"créer une copie\" et valider: une nouvelle feuille avec le tableau est créée."]

{"sheet":"Equipe 3","index":3,"n_rows":70,"n_cols":33,"rows_kept":70,"cut":false,"hidden":false,"merged":[[2,23,3,23],[2,24,3,24],[2,16,3,16],[2,17,3,17],[2,32,3,32],[1,25,3,25],[2,22,3,22],[65,18,65,20],[0,0,0,21],[2,18,3,18],[2,19,3,19],[2,20,3,20],[2,21,3,21],[1,0,1,4],[1,9,1,10],[1,12,1,13],[2,9,2,10],[2,12,2,13],[2,15,3,15]]}
["Passeport \"Joueuse de Devant\" Moins de 18 ans Féminine"]
[null,null,null,null,null,"a","b",null,"c","d",null,"e","f",null,"g","Score","h","i","j","k","l","m","n","o","total \n(h+ i+j+k+l+m+n+o)","Résultats\nCLIQUEZ\nsur"]
["Club","Numéro Licence","Prénom","Nom","Date \nnaissance","Taille (en cm!)","Poids","IMC","Test Squat Complet            0                           2                         4","\nSaut en \nlongueur\n\nIMC<27    /    IMC>27\n3= 190 cm ≤ L   /   170 cm ≤ L\n2= 165 ≤ L<190 / 145 ≤ L<170\n1= 140 ≤ L<165 / 120 ≤ L<145\n0=  L < 140cm  /  L < 120cm\n\n\n\n\n",null,"Gainage tronc\n3 = mains au-dessus de la tête\n2 = mains menton\n 1 = appuis genoux\n 0 = échec ","Gainage\n cou\n\npoids<70 / poids ≥ 70\n3 = 10 fois  /  8 fois \n2 = 5 fois  /   4 fois\n1 = 1 fois /  1 fois\n0pt = 1 fois <5''",null,"Circuit Posture \"Pré mêlée\"\n3 = circuit<12''\n2 =circuit>12''\n1 = 2 essais initiaux\n0pt= non essais initiaux","\"Fonctionnel\"        c+d+e+f+g","Connaissance et maîtrise\ndes 3\ncommandements     ","Posture \n de poussée","Poussée\nindividuelle","Poussée \n1 +2\nau joug","Poussée\nvs2 en \nreculant","Poussée \nvs2 en avançant","Placement & Poussée\n sur\n partenaire\ndroite","Placement & Poussée\nsur \npartenaire\ngauche","Technique",null,null,null,null,null,null,null,"Poste\n1 à 15"]
[null,null,null,null,null,null,null,null,null,"Distance (cm)","Score","Score","Nombre de rép.","Score","Score"]
["A",null,"EXEMPLE","A","1997-01-01",173,65,{"$f":"IF(G5<>\"\",G5/(F5/100)^2,\"\")","v":21.718066089745729},4,160,1,3,5,2,2,{"$f":"IF(H5<>\"\",I5+K5+L5+N5+O5,\"\")","v":12},"V",3,3,3,3,4,4,3,{"$f":"IF(R5<>\"\",SUM(R5:X5),\"\")","v":23},"OK!",null,null,null,null,null,null,7]
[null,null,null,null,null,null,null,{"$f":"IF(G6<>\"\",G6/(F6/100)^2,\"\")","v":""},null,null,null,null,null,null,null,{"$f":"IF(H6<>\"\",I6+K6+L6+N6+O6,\"\")","v":""},null,null,null,null,null,null,null,null,{"$f":"IF(R6<>\"\",SUM(R6:X6),\"\")","v":""},null,null,"V",0,0,0,0]
[null,null,null,null,null,null,null,"",null,null,null,null,null,null,null,{"$f":"IF(H7<>\"\",I7+K7+L7+N7+O7,\"\")","v":""},null,null,null,null,null,null,null,null,"",null,null,"NV",40,1,1,1]
[null,null,null,null,null,null,null,"",null,null,null,null,null,null,null,"",null,null,null,null,null,null,null,null,"",null,null,null,35,2,2,2]
[null,null,null,null,null,null,null,"",null,null,null,null,null,null,null,"",null,null,null,null,null,null,null,null,"",null,null,null,30,3,3,3]
[null,null,null,null,null,null,null,"",null,null,null,null,null,null,null,"",null,null,null,null,null,null,null,null,"",null,null,null,25,null,4,4]
[null,null,null,null,null,null,null,"",null,null,null,null,null,null,null,"",null,null,null,null,null,null,null,null,"",null,null,null,20,null,null,5]
[null,null,null,null,null,null,null,"",null,null,null,null,null,null,null,"",null,null,null,null,null,null,null,null,""]
[null,null,null,null,null,null,null,"",null,null,null,null,null,null,null,"",null,null,null,null,null,null,null,null,{"$f":"IF(R13<>\"\",SUM(R13:X13),\"\")","v":""}]
[null,null,null,null,null,null,null,"",null,null,null,null,null,null,null,"",null,null,null,null,null,null,null,null,""]
[null,null,null,null,null,null,null,"",null,null,null,null,null,null,null,"",null,null,null,null,null,null,null,null,""]
[null,null,null,null,null,null,null,"",null,null,null,null,null,null,null,"",null,null,null,null,null,null,null,null,""]
[null,null,null,null,null,null,null,"",null,null,null,null,null,null,null,"",null,null,null,null,null,null,null,null,""]
[null,null,null,null,null,null,null,"",null,null,null,null,null,null,null,"",null,null,null,null,null,null,null,null,""]
[null,null,null,null,null,null,null,"",null,null,null,null,null,null,null,"",null,null,null,null,null,null,null,null,""]
[null,null,null,null,null,null,null,"",null,null,null,null,null,null,null,"",null,null,null,null,null,null,null,null,""]
[null,null,null,null,null,null,null,"",null,null,null,null,null,null,null,"",null,null,null,null,null,null,null,null,""]
[null,null,null,null,null,null,null,"",null,null,null,null,null,null,null,"",null,null,null,null,null,null,null,null,""]
[null,null,null,null,null,null,null,"",null,null,null,null,null,null,null,"",null,null,null,null,null,null,null,null,""]
[null,null,null,null,null,null,null,"",null,null,null,null,null,null,null,"",null,null,null,null,null,null,null,null,""]
[null,null,null,null,null,null,null,"",null,null,null,null,null,null,null,"",null,null,null,null,null,null,null,null,""]
[null,null,null,null,null,null,null,"",null,null,null,null,null,null,null,"",null,null,null,null,null,null,null,null,""]
[null,null,null,null,null,null,null,"",null,null,null,null,null,null,null,"",null,null,null,null,null,null,null,null,""]
[null,null,null,null,null,null,null,"",null,null,null,null,null,null,null,"",null,null,null,null,null,null,null,null,""]
[null,null,null,null,null,null,null,"",null,null,null,null,null,null,null,"",null,null,null,null,null,null,null,null,""]
[null,null,null,null,null,null,null,"",null,null,null,null,null,null,null,"",null,null,null,null,null,null,null,null,""]
[null,null,null,null,null,null,null,"",null,null,null,null,null,null,null,"",null,null,null,null,null,null,null,null,""]
[null,null,null,null,null,null,null,"",null,null,null,null,null,null,null,"",null,null,null,null,null,null,null,null,""]
[null,null,null,null,null,null,null,"",null,null,null,null,null,null,null,"",null,null,null,null,null,null,null,null,""]
[null,null,null,null,null,null,null,"",null,null,null,null,null,null,null,"",null,null,null,null,null,null,null,null,""]
[null,null,null,null,null,null,null,"",null,null,null,null,null,null,null,"",null,null,null,null,null,null,null,null,""]
[null,null,null,null,null,null,null,"",null,null,null,null,null,null,null,"",null,null,null,null,null,null,null,null,""]
[null,null,null,null,null,null,null,"",null,null,null,null,null,null,null,"",null,null,null,null,null,null,null,null,""]
[null,null,null,null,null,null,null,"",null,null,null,null,null,null,null,"",null,null,null,null,null,null,null,null,""]
[null,null,null,null,null,null,null,"",null,null,null,null,null,null,null,"",null,null,null,null,null,null,null,null,""]
[null,null,null,null,null,null,null,"",null,null,null,null,null,null,null,"",null,null,null,null,null,null,null,null,{"$f":"IF(R40<>\"\",SUM(R40:X40),\"\")","v":""}]
[null,null,null,null,null,null,null,"",null,null,null,null,null,null,null,"",null,null,null,null,null,null,null,null,""]
[null,null,null,null,null,null,null,"",null,null,null,null,null,null,null,"",null,null,null,null,null,null,null,null,""]
[null,null,null,null,null,null,null,"",null,null,null,null,null,null,null,"",null,null,null,null,null,null,null,null,""]
[null,null,null,null,null,null,null,"",null,null,null,null,null,null,null,"",null,null,null,null,null,null,null,null,""]
[null,null,null,null,null,null,null,"",null,null,null,null,null,null,null,"",null,null,null,null,null,null,null,null,""]
[null,null,null,null,null,null,null,"",null,null,null,null,null,null,null,"",null,null,null,null,null,null,null,null,""]
[null,null,null,null,null,null,null,"",null,null,null,null,null,null,null,"",null,null,null,null,null,null,null,null,""]
[null,null,null,null,null,null,null,"",null,null,null,null,null,null,null,"",null,null,null,null,null,null,null,null,""]
[null,null,null,null,null,null,null,"",null,null,null,null,null,null,null,"",null,null,null,null,null,null,null,null,{"$f":"IF(R49<>\"\",SUM(R49:X49),\"\")","v":""}]
[null,null,null,null,null,null,null,"",null,null,null,null,null,null,null,"",null,null,null,null,null,null,null,null,""]
[null,null,null,null,null,null,null,"",null,null,null,null,null,null,null,"",null,null,null,null,null,null,null,null,""]
[null,null,null,null,null,null,null,"",null,null,null,null,null,null,null,"",null,null,null,null,null,null,null,null,""]
[null,null,null,null,null,null,null,"",null,null,null,null,null,null,null,"",null,null,null,null,null,null,null,null,""]
[null,null,null,null,null,null,null,"",null,null,null,null,null,null,null,"",null,null,null,null,null,null,null,null,""]
[null,null,null,null,null,null,null,"",null,null,null,null,null,null,null,"",null,null,null,null,null,null,null,null,""]
[null,null,null,null,null,null,null,"",null,null,null,null,null,null,null,"",null,null,null,null,null,null,null,null,""]
[null,null,null,null,null,null,null,"",null,null,null,null,null,null,null,"",null,null,null,null,null,null,null,null,""]
[null,null,null,null,null,null,null,"",null,null,null,null,null,null,null,"",null,null,null,null,null,null,null,null,""]
[null,null,null,null,null,null,null,"",null,null,null,null,null,null,null,"",null,null,null,null,null,null,null,null,""]
[null,null,null,null,null,null,null,"",null,null,null,null,null,null,null,"",null,null,null,null,null,null,null,null,""]
[null,null,null,null,null,null,null,"",null,null,null,null,null,null,null,"",null,null,null,null,null,null,null,null,""]
[null,null,null,null,null,null,null,"",null,null,null,null,null,null,null,"",null,null,null,null,null,null,null,null,""]
[null,null,null,null,null,null,null,"",null,null,null,null,null,null,null,"",null,null,null,null,null,null,null,null,""]
[null,null,null,null,null,null,null,"",null,null,null,null,null,null,null,"",null,null,null,null,null,null,null,null,""]
[null,null,null,null,null,null,null,"",null,null,null,null,null,null,null,"",null,null,null,null,null,null,null,null,""]
[null,null,null,null,null,null,null,null,null,null,null,null,null,null,null,null,null,null,"note ≤ 1 annule les notes suivantes"]
[]
[null,null,null,null,null,null,null,null,null,null,null,null,null,null,null,null,"Ne pas effacer ni insérer de lignes supplémentaires"]
[]
[null,null,null,null,null,null,null,null,null,null,null,null,null,null,"Pour créer une nouvelle feuille: placer le curseur (en bas à gauche) sur Equipe 1  vierge - cliquez droit sur \"déplacer ou copier\" puis \"créer une copie\" et valider: une nouvelle feuille avec le tableau est créée."]

{"sheet":"Equipe 4","index":4,"n_rows":70,"n_cols":33,"rows_kept":70,"cut":false,"hidden":false,"merged":[[2,23,3,23],[2,24,3,24],[2,16,3,16],[2,17,3,17],[2,32,3,32],[1,25,3,25],[2,22,3,22],[65,18,65,20],[0,0,0,21],[2,18,3,18],[2,19,3,19],[2,20,3,20],[2,21,3,21],[1,0,1,4],[1,9,1,10],[1,12,1,13],[2,9,2,10],[2,12,2,13],[2,15,3,15]]}
["Passeport \"Joueuse de Devant\" Moins de 18 ans Féminine"]
[null,null,null,null,null,"a","b",null,"c","d",null,"e","f",null,"g","Score","h","i","j","k","l","m","n","o","total \n(h+ i+j+k+l+m+n+o)","Résultats\nCLIQUEZ\nsur"]
["Club","Numéro Licence","Prénom","Nom","Date \nnaissance","Taille (en cm!)","Poids","IMC","Test Squat Complet            0                           2                         4","\nSaut en \nlongueur\n\nIMC<27    /    IMC>27\n3= 190 cm ≤ L   /   170 cm ≤ L\n2= 165 ≤ L<190 / 145 ≤ L<170\n1= 140 ≤ L<165 / 120 ≤ L<145\n0=  L < 140cm  /  L < 120cm\n\n\n\n\n",null,"Gainage tronc\n3 = mains au-dessus de la tête\n2 = mains menton\n 1 = appuis genoux\n 0 = échec ","Gainage\n cou\n\npoids<70 / poids ≥ 70\n3 = 10 fois  /  8 fois \n2 = 5 fois  /   4 fois\n1 = 1 fois /  1 fois\n0pt = 1 fois <5''",null,"Circuit Posture \"Pré mêlée\"\n3 = circuit<12''\n2 =circuit>12''\n1 = 2 essais initiaux\n0pt= non essais initiaux","\"Fonctionnel\"        c+d+e+f+g","Connaissance et maîtrise\ndes 3\ncommandements     ","Posture \n de poussée","Poussée\nindividuelle","Poussée \n1 +2\nau joug","Poussée\nvs2 en \nreculant","Poussée \nvs2 en avançant","Placement & Poussée\n sur\n partenaire\ndroite","Placement & Poussée\nsur \npartenaire\ngauche","Technique",null,null,null,null,null,null,null,"Poste\n1 à 15"]
[null,null,null,null,null,null,null,null,null,"Distance (cm)","Score","Score","Nombre de rép.","Score","Score"]
["A",null,"EXEMPLE","A","1997-01-01",173,65,{"$f":"IF(G5<>\"\",G5/(F5/100)^2,\"\")","v":21.718066089745729},4,160,1,3,5,2,2,{"$f":"IF(H5<>\"\",I5+K5+L5+N5+O5,\"\")","v":12},"V",3,3,3,3,4,4,3,{"$f":"IF(R5<>\"\",SUM(R5:X5),\"\")","v":23},"OK!",null,null,null,null,null,null,7]
[null,null,null,null,null,null,null,{"$f":"IF(G6<>\"\",G6/(F6/100)^2,\"\")","v":""},null,null,null,null,null,null,null,{"$f":"IF(H6<>\"\",I6+K6+L6+N6+O6,\"\")","v":""},null,null,null,null,null,null,null,null,{"$f":"IF(R6<>\"\",SUM(R6:X6),\"\")","v":""},null,null,"V",0,0,0,0]
[null,null,null,null,null,null,null,"",null,null,null,null,null,null,null,{"$f":"IF(H7<>\"\",I7+K7+L7+N7+O7,\"\")","v":""},null,null,null,null,null,null,null,null,"",null,null,"NV",40,1,1,1]
[null,null,null,null,null,null,null,"",null,null,null,null,null,null,null,"",null,null,null,null,null,null,null,null,"",null,null,null,35,2,2,2]
[null,null,null,null,null,null,null,"",null,null,null,null,null,null,null,"",null,null,null,null,null,null,null,null,"",null,null,null,30,3,3,3]
[null,null,null,null,null,null,null,"",null,null,null,null,null,null,null,"",null,null,null,null,null,null,null,null,"",null,null,null,25,null,4,4]
[null,null,null,null,null,null,null,"",null,null,null,null,null,null,null,"",null,null,null,null,null,null,null,null,"",null,null,null,20,null,null,5]
[null,null,null,null,null,null,null,"",null,null,null,null,null,null,null,"",null,null,null,null,null,null,null,null,""]
[null,null,null,null,null,null,null,"",null,null,null,null,null,null,null,"",null,null,null,null,null,null,null,null,{"$f":"IF(R13<>\"\",SUM(R13:X13),\"\")","v":""}]
[null,null,null,null,null,null,null,"",null,null,null,null,null,null,null,"",null,null,null,null,null,null,null,null,""]
[null,null,null,null,null,null,null,"",null,null,null,null,null,null,null,"",null,null,null,null,null,null,null,null,""]
[null,null,null,null,null,null,null,"",null,null,null,null,null,null,null,"",null,null,null,null,null,null,null,null,""]
[null,null,null,null,null,null,null,"",null,null,null,null,null,null,null,"",null,null,null,null,null,null,null,null,""]
[null,null,null,null,null,null,null,"",null,null,null,null,null,null,null,"",null,null,null,null,null,null,null,null,""]
[null,null,null,null,null,null,null,"",null,null,null,null,null,null,null,"",null,null,null,null,null,null,null,null,""]
[null,null,null,null,null,null,null,"",null,null,null,null,null,null,null,"",null,null,null,null,null,null,null,null,""]
[null,null,null,null,null,null,null,"",null,null,null,null,null,null,null,"",null,null,null,null,null,null,null,null,""]
[null,null,null,null,null,null,null,"",null,null,null,null,null,null,null,"",null,null,null,null,null,null,null,null,""]
[null,null,null,null,null,null,null,"",null,null,null,null,null,null,null,"",null,null,null,null,null,null,null,null,""]
[null,null,null,null,null,null,null,"",null,null,null,null,null,null,null,"",null,null,null,null,null,null,null,null,""]
[null,null,null,null,null,null,null,"",null,null,null,null,null,null,null,"",null,null,null,null,null,null,null,null,""]
[null,null,null,null,null,null,null,"",null,null,null,null,null,null,null,"",null,null,null,null,null,null,null,null,""]
[null,null,null,null,null,null,null,"",null,null,null,null,null,null,null,"",null,null,null,null,null,null,null,null,""]
[null,null,null,null,null,null,null,"",null,null,null,null,null,null,null,"",null,null,null,null,null,null,null,null,""]
[null,null,null,null,null,null,null,"",null,null,null,null,null,null,null,"",null,null,null,null,null,null,null,null,""]
[null,null,null,null,null,null,null,"",null,null,null,null,null,null,null,"",null,null,null,null,null,null,null,null,""]
[null,null,null,null,null,null,null,"",null,null,null,null,null,null,null,"",null,null,null,null,null,null,null,null,""]
[null,null,null,null,null,null,null,"",null,null,null,null,null,null,null,"",null,null,null,null,null,null,null,null,""]
[null,null,null,null,null,null,null,"",null,null,null,null,null,null,null,"",null,null,null,null,null,null,null,null,""]
[null,null,null,null,null,null,null,"",null,null,null,null,null,null,null,"",null,null,null,null,null,null,null,null,""]
[null,null,null,null,null,null,null,"",null,null,null,null,null,null,null,"",null,null,null,null,null,null,null,null,""]
[null,null,null,null,null,null,null,"",null,null,null,null,null,null,null,"",null,null,null,null,null,null,null,null,""]
[null,null,null,null,null,null,null,"",null,null,null,null,null,null,null,"",null,null,null,null,null,null,null,null,""]
[null,null,null,null,null,null,null,"",null,null,null,null,null,null,null,"",null,null,null,null,null,null,null,null,""]
[null,null,null,null,null,null,null,"",null,null,null,null,null,null,null,"",null,null,null,null,null,null,null,null,""]
[null,null,null,null,null,null,null,"",null,null,null,null,null,null,null,"",null,null,null,null,null,null,null,null,{"$f":"IF(R40<>\"\",SUM(R40:X40),\"\")","v":""}]
[null,null,null,null,null,null,null,"",null,null,null,null,null,null,null,"",null,null,null,null,null,null,null,null,""]
[null,null,null,null,null,null,null,"",null,null,null,null,null,null,null,"",null,null,null,null,null,null,null,null,""]
[null,null,null,null,null,null,null,"",null,null,null,null,null,null,null,"",null,null,null,null,null,null,null,null,""]
[null,null,null,null,null,null,null,"",null,null,null,null,null,null,null,"",null,null,null,null,null,null,null,null,""]
[null,null,null,null,null,null,null,"",null,null,null,null,null,null,null,"",null,null,null,null,null,null,null,null,""]
[null,null,null,null,null,null,null,"",null,null,null,null,null,null,null,"",null,null,null,null,null,null,null,null,""]
[null,null,null,null,null,null,null,"",null,null,null,null,null,null,null,"",null,null,null,null,null,null,null,null,""]
[null,null,null,null,null,null,null,"",null,null,null,null,null,null,null,"",null,null,null,null,null,null,null,null,""]
[null,null,null,null,null,null,null,"",null,null,null,null,null,null,null,"",null,null,null,null,null,null,null,null,{"$f":"IF(R49<>\"\",SUM(R49:X49),\"\")","v":""}]
[null,null,null,null,null,null,null,"",null,null,null,null,null,null,null,"",null,null,null,null,null,null,null,null,""]
[null,null,null,null,null,null,null,"",null,null,null,null,null,null,null,"",null,null,null,null,null,null,null,null,""]
[null,null,null,null,null,null,null,"",null,null,null,null,null,null,null,"",null,null,null,null,null,null,null,null,""]
[null,null,null,null,null,null,null,"",null,null,null,null,null,null,null,"",null,null,null,null,null,null,null,null,""]
[null,null,null,null,null,null,null,"",null,null,null,null,null,null,null,"",null,null,null,null,null,null,null,null,""]
[null,null,null,null,null,null,null,"",null,null,null,null,null,null,null,"",null,null,null,null,null,null,null,null,""]
[null,null,null,null,null,null,null,"",null,null,null,null,null,null,null,"",null,null,null,null,null,null,null,null,""]
[null,null,null,null,null,null,null,"",null,null,null,null,null,null,null,"",null,null,null,null,null,null,null,null,""]
[null,null,null,null,null,null,null,"",null,null,null,null,null,null,null,"",null,null,null,null,null,null,null,null,""]
[null,null,null,null,null,null,null,"",null,null,null,null,null,null,null,"",null,null,null,null,null,null,null,null,""]
[null,null,null,null,null,null,null,"",null,null,null,null,null,null,null,"",null,null,null,null,null,null,null,null,""]
[null,null,null,null,null,null,null,"",null,null,null,null,null,null,null,"",null,null,null,null,null,null,null,null,""]
[null,null,null,null,null,null,null,"",null,null,null,null,null,null,null,"",null,null,null,null,null,null,null,null,""]
[null,null,null,null,null,null,null,"",null,null,null,null,null,null,null,"",null,null,null,null,null,null,null,null,""]
[null,null,null,null,null,null,null,"",null,null,null,null,null,null,null,"",null,null,null,null,null,null,null,null,""]
[null,null,null,null,null,null,null,"",null,null,null,null,null,null,null,"",null,null,null,null,null,null,null,null,""]
[null,null,null,null,null,null,null,null,null,null,null,null,null,null,null,null,null,null,"note ≤ 1 annule les notes suivantes"]
[]
[null,null,null,null,null,null,null,null,null,null,null,null,null,null,null,null,"Ne pas effacer ni insérer de lignes supplémentaires"]
[]
[null,null,null,null,null,null,null,null,null,null,null,null,null,null,"Pour créer une nouvelle feuille: placer le curseur (en bas à gauche) sur Equipe 1  vierge - cliquez droit sur \"déplacer ou copier\" puis \"créer une copie\" et valider: une nouvelle feuille avec le tableau est créée."]

{"sheet":"Equipe 5","index":5,"n_rows":70,"n_cols":33,"rows_kept":70,"cut":false,"hidden":false,"merged":[[2,23,3,23],[2,24,3,24],[2,16,3,16],[2,17,3,17],[2,32,3,32],[1,25,3,25],[2,22,3,22],[65,18,65,20],[0,0,0,21],[2,18,3,18],[2,19,3,19],[2,20,3,20],[2,21,3,21],[1,0,1,4],[1,9,1,10],[1,12,1,13],[2,9,2,10],[2,12,2,13],[2,15,3,15]]}
["Passeport \"Joueuse de Devant\" Moins de 18 ans Féminine"]
[null,null,null,null,null,"a","b",null,"c","d",null,"e","f",null,"g","Score","h","i","j","k","l","m","n","o","total \n(h+ i+j+k+l+m+n+o)","Résultats\nCLIQUEZ\nsur"]
["Club","Numéro Licence","Prénom","Nom","Date \nnaissance","Taille (en cm)","Poids","IMC","Test Squat Complet            0                           2                         4","\nSaut en \nlongueur\n\nIMC<27    /    IMC>27\n3= 190 cm ≤ L   /   170 cm ≤ L\n2= 165 ≤ L<190 / 145 ≤ L<170\n1= 140 ≤ L<165 / 120 ≤ L<145\n0=  L < 140cm  /  L < 120cm\n\n\n\n\n",null,"Gainage tronc\n3 = mains au-dessus de la tête\n2 = mains menton\n 1 = appuis genoux\n 0 = échec ","Gainage\n cou\n\npoids<70 / poids ≥ 70\n3 = 10 fois  /  8 fois \n2 = 5 fois  /   4 fois\n1 = 1 fois /  1 fois\n0pt = 1 fois <5''",null,"Circuit Posture \"Pré mêlée\"\n3 = circuit<12''\n2 =circuit>12''\n1 = 2 essais initiaux\n0pt= non essais initiaux","\"Fonctionnel\"        c+d+e+f+g","Connaissance et maîtrise\ndes 3\ncommandements     ","Posture \n de poussée","Poussée\nindividuelle","Poussée \n1 +2\nau joug","Poussée\nvs2 en \nreculant","Poussée \nvs2 en avançant","Placement & Poussée\n sur\n partenaire\ndroite","Placement & Poussée\nsur \npartenaire\ngauche","Technique",null,null,null,null,null,null,null,"Poste\n1 à 15"]
[null,null,null,null,null,null,null,null,null,"Distance (cm)","Score","Score","Nombre de rép.","Score","Score"]
["A",null,"EXEMPLE","A","1997-01-01",173,65,{"$f":"IF(G5<>\"\",G5/(F5/100)^2,\"\")","v":21.718066089745729},4,160,1,3,5,2,2,{"$f":"IF(H5<>\"\",I5+K5+L5+N5+O5,\"\")","v":12},"V",3,3,3,3,4,4,3,{"$f":"IF(R5<>\"\",SUM(R5:X5),\"\")","v":23},"OK!",null,null,null,null,null,null,7]
[null,null,null,null,null,null,null,{"$f":"IF(G6<>\"\",G6/(F6/100)^2,\"\")","v":""},null,null,null,null,null,null,null,{"$f":"IF(H6<>\"\",I6+K6+L6+N6+O6,\"\")","v":""},null,null,null,null,null,null,null,null,{"$f":"IF(R6<>\"\",SUM(R6:X6),\"\")","v":""},null,null,"V",0,0,0,0]
[null,null,null,null,null,null,null,{"$f":"IF(G7<>\"\",G7/(F7/100)^2,\"\")","v":""},null,null,null,null,null,null,null,{"$f":"IF(H7<>\"\",I7+K7+L7+N7+O7,\"\")","v":""},null,null,null,null,null,null,null,null,"",null,null,"NV",40,1,1,1]
[null,null,null,null,null,null,null,"",null,null,null,null,null,null,null,"",null,null,null,null,null,null,null,null,"",null,null,null,35,2,2,2]
[null,null,null,null,null,null,null,"",null,null,null,null,null,null,null,"",null,null,null,null,null,null,null,null,"",null,null,null,30,3,3,3]
[null,null,null,null,null,null,null,"",null,null,null,null,null,null,null,"",null,null,null,null,null,null,null,null,"",null,null,null,25,null,4,4]
[null,null,null,null,null,null,null,"",null,null,null,null,null,null,null,"",null,null,null,null,null,null,null,null,"",null,null,null,20,null,null,5]
[null,null,null,null,null,null,null,"",null,null,null,null,null,null,null,"",null,null,null,null,null,null,null,null,""]
[null,null,null,null,null,null,null,"",null,null,null,null,null,null,null,"",null,null,null,null,null,null,null,null,{"$f":"IF(R13<>\"\",SUM(R13:X13),\"\")","v":""}]
[null,null,null,null,null,null,null,"",null,null,null,null,null,null,null,"",null,null,null,null,null,null,null,null,""]
[null,null,null,null,null,null,null,"",null,null,null,null,null,null,null,"",null,null,null,null,null,null,null,null,""]
[null,null,null,null,null,null,null,"",null,null,null,null,null,null,null,"",null,null,null,null,null,null,null,null,""]
[null,null,null,null,null,null,null,"",null,null,null,null,null,null,null,"",null,null,null,null,null,null,null,null,""]
[null,null,null,null,null,null,null,"",null,null,null,null,null,null,null,"",null,null,null,null,null,null,null,null,""]
[null,null,null,null,null,null,null,"",null,null,null,null,null,null,null,"",null,null,null,null,null,null,null,null,""]
[null,null,null,null,null,null,null,"",null,null,null,null,null,null,null,"",null,null,null,null,null,null,null,null,""]
[null,null,null,null,null,null,null,"",null,null,null,null,null,null,null,"",null,null,null,null,null,null,null,null,""]
[null,null,null,null,null,null,null,"",null,null,null,null,null,null,null,"",null,null,null,null,null,null,null,null,""]
[null,null,null,null,null,null,null,"",null,null,null,null,null,null,null,"",null,null,null,null,null,null,null,null,""]
[null,null,null,null,null,null,null,"",null,null,null,null,null,null,null,"",null,null,null,null,null,null,null,null,""]
[null,null,null,null,null,null,null,"",null,null,null,null,null,null,null,"",null,null,null,null,null,null,null,null,""]
[null,null,null,null,null,null,null,"",null,null,null,null,null,null,null,"",null,null,null,null,null,null,null,null,""]
[null,null,null,null,null,null,null,"",null,null,null,null,null,null,null,"",null,null,null,null,null,null,null,null,""]
[null,null,null,null,null,null,null,"",null,null,null,null,null,null,null,"",null,null,null,null,null,null,null,null,""]
[null,null,null,null,null,null,null,"",null,null,null,null,null,null,null,"",null,null,null,null,null,null,null,null,""]
[null,null,null,null,null,null,null,"",null,null,null,null,null,null,null,"",null,null,null,null,null,null,null,null,""]
[null,null,null,null,null,null,null,"",null,null,null,null,null,null,null,"",null,null,null,null,null,null,null,null,""]
[null,null,null,null,null,null,null,"",null,null,null,null,null,null,null,"",null,null,null,null,null,null,null,null,""]
[null,null,null,null,null,null,null,"",null,null,null,null,null,null,null,"",null,null,null,null,null,null,null,null,""]
[null,null,null,null,null,null,null,"",null,null,null,null,null,null,null,"",null,null,null,null,null,null,null,null,""]
[null,null,null,null,null,null,null,"",null,null,null,null,null,null,null,"",null,null,null,null,null,null,null,null,""]
[null,null,null,null,null,null,null,"",null,null,null,null,null,null,null,"",null,null,null,null,null,null,null,null,""]
[null,null,null,null,null,null,null,"",null,null,null,null,null,null,null,"",null,null,null,null,null,null,null,null,""]
[null,null,null,null,null,null,null,"",null,null,null,null,null,null,null,"",null,null,null,null,null,null,null,null,""]
[null,null,null,null,null,null,null,"",null,null,null,null,null,null,null,"",null,null,null,null,null,null,null,null,""]
[null,null,null,null,null,null,null,"",null,null,null,null,null,null,null,"",null,null,null,null,null,null,null,null,{"$f":"IF(R40<>\"\",SUM(R40:X40),\"\")","v":""}]
[null,null,null,null,null,null,null,"",null,null,null,null,null,null,null,"",null,null,null,null,null,null,null,null,""]
[null,null,null,null,null,null,null,"",null,null,null,null,null,null,null,"",null,null,null,null,null,null,null,null,""]
[null,null,null,null,null,null,null,"",null,null,null,null,null,null,null,"",null,null,null,null,null,null,null,null,""]
[null,null,null,null,null,null,null,"",null,null,null,null,null,null,null,"",null,null,null,null,null,null,null,null,""]
[null,null,null,null,null,null,null,"",null,null,null,null,null,null,null,"",null,null,null,null,null,null,null,null,""]
[null,null,null,null,null,null,null,"",null,null,null,null,null,null,null,"",null,null,null,null,null,null,null,null,""]
[null,null,null,null,null,null,null,"",null,null,null,null,null,null,null,"",null,null,null,null,null,null,null,null,""]
[null,null,null,null,null,null,null,"",null,null,null,null,null,null,null,"",null,null,null,null,null,null,null,null,""]
[null,null,null,null,null,null,null,"",null,null,null,null,null,null,null,"",null,null,null,null,null,null,null,null,{"$f":"IF(R49<>\"\",SUM(R49:X49),\"\")","v":""}]
[null,null,null,null,null,null,null,"",null,null,null,null,null,null,null,"",null,null,null,null,null,null,null,null,""]
[null,null,null,null,null,null,null,"",null,null,null,null,null,null,null,"",null,null,null,null,null,null,null,null,""]
[null,null,null,null,null,null,null,"",null,null,null,null,null,null,null,"",null,null,null,null,null,null,null,null,""]
[null,null,null,null,null,null,null,"",null,null,null,null,null,null,null,"",null,null,null,null,null,null,null,null,""]
[null,null,null,null,null,null,null,"",null,null,null,null,null,null,null,"",null,null,null,null,null,null,null,null,""]
[null,null,null,null,null,null,null,"",null,null,null,null,null,null,null,"",null,null,null,null,null,null,null,null,""]
[null,null,null,null,null,null,null,"",null,null,null,null,null,null,null,"",null,null,null,null,null,null,null,null,""]
[null,null,null,null,null,null,null,"",null,null,null,null,null,null,null,"",null,null,null,null,null,null,null,null,""]
[null,null,null,null,null,null,null,"",null,null,null,null,null,null,null,"",null,null,null,null,null,null,null,null,""]
[null,null,null,null,null,null,null,"",null,null,null,null,null,null,null,"",null,null,null,null,null,null,null,null,""]
[null,null,null,null,null,null,null,"",null,null,null,null,null,null,null,"",null,null,null,null,null,null,null,null,""]
[null,null,null,null,null,null,null,"",null,null,null,null,null,null,null,"",null,null,null,null,null,null,null,null,""]
[null,null,null,null,null,null,null,"",null,null,null,null,null,null,null,"",null,null,null,null,null,null,null,null,""]
[null,null,null,null,null,null,null,"",null,null,null,null,null,null,null,"",null,null,null,null,null,null,null,null,""]
[null,null,null,null,null,null,null,"",null,null,null,null,null,null,null,"",null,null,null,null,null,null,null,null,""]
[null,null,null,null,null,null,null,"",null,null,null,null,null,null,null,"",null,null,null,null,null,null,null,null,""]
[null,null,null,null,null,null,null,null,null,null,null,null,null,null,null,null,null,null,"note ≤ 1 annule les notes suivantes"]
[]
[null,null,null,null,null,null,null,null,null,null,null,null,null,null,null,null,"Ne pas effacer ni insérer de lignes supplémentaires"]
[]
[null,null,null,null,null,null,null,null,null,null,null,null,null,null,"Pour créer une nouvelle feuille: placer le curseur (en bas à gauche) sur Equipe 1  vierge - cliquez droit sur \"déplacer ou copier\" puis \"créer une copie\" et valider: une nouvelle feuille avec le tableau est créée."]